[Event "Early-Titled-Tuesday-Blitz-September-12-2023"]
[Site "Chess.com"]
[Date "2023.09.12"]
[Round "10"]
[White "h4parah5"]
[Black "FairChess_on_YouTube"]
[Result "0-1"]
[WhiteElo "2934"]
[BlackElo "3049"]
[TimeControl "180+1"]
[EndTime "9:55:35 PDT"]
[Termination "FairChess_on_YouTube won by resignation"]

1. Nf3 {[%clk 0:02:58.9]} 1... b5 {[%clk 0:02:59.1]} 2. e4 {[%clk 0:02:55.4]}
2... Bb7 {[%clk 0:02:58.9]} 3. Qe2 {[%clk 0:02:55.7]} 3... e6 {[%clk 0:02:48.3]}
4. g3 {[%clk 0:02:53.8]} 4... c5 {[%clk 0:02:43]} 5. Bg2 {[%clk 0:02:53.5]} 5...
b4 {[%clk 0:02:42.2]} 6. O-O {[%clk 0:02:52.6]} 6... Nc6 {[%clk 0:02:42]} 7. Re1
{[%clk 0:02:51.8]} 7... a5 {[%clk 0:02:31]} 8. c3 {[%clk 0:02:51.2]} 8... Nf6
{[%clk 0:02:28]} 9. d4 {[%clk 0:02:50]} 9... cxd4 {[%clk 0:02:24.8]} 10. cxd4
{[%clk 0:02:50.9]} 10... d5 {[%clk 0:02:25.3]} 11. e5 {[%clk 0:02:49.6]} 11...
Nd7 {[%clk 0:02:18.7]} 12. Be3 {[%clk 0:02:32.8]} 12... Ba6 {[%clk 0:02:14.7]}
13. Qd1 {[%clk 0:02:28]} 13... Be7 {[%clk 0:02:13.5]} 14. Nbd2 {[%clk
0:02:26.7]} 14... O-O {[%clk 0:02:13.7]} 15. Rc1 {[%clk 0:02:24.9]} 15... Qb6
{[%clk 0:02:07.9]} 16. Nb3 {[%clk 0:02:10.7]} 16... Rfd8 {[%clk 0:01:46.4]} 17.
Bg5 {[%clk 0:01:40.3]} 17... Bc4 {[%clk 0:01:40]} 18. Bxe7 {[%clk 0:01:37.3]}
18... Nxe7 {[%clk 0:01:40.2]} 19. Nfd2 {[%clk 0:01:31.3]} 19... Rac8 {[%clk
0:01:39.5]} 20. Qg4 {[%clk 0:01:09.9]} 20... Nf5 {[%clk 0:01:31]} 21. Nxc4
{[%clk 0:01:02.2]} 21... dxc4 {[%clk 0:01:28.4]} 22. Nd2 {[%clk 0:01:02.5]}
22... c3 {[%clk 0:01:22.7]} 23. bxc3 {[%clk 0:01:03.4]} 23... bxc3 {[%clk
0:01:23.1]} 24. Nf3 {[%clk 0:01:00.3]} 24... c2 {[%clk 0:01:18.1]} 25. d5 {[%clk
0:00:52.9]} 25... h6 {[%clk 0:00:53.3]} 26. dxe6 {[%clk 0:00:43.8]} 26... fxe6
{[%clk 0:00:54.2]} 27. Bf1 {[%clk 0:00:38]} 27... Rc3 {[%clk 0:00:49.7]} 28. Bc4
{[%clk 0:00:30.3]} 28... Nc5 {[%clk 0:00:41]} 29. Kg2 {[%clk 0:00:24]} 29... Nd4
{[%clk 0:00:29.7]} 30. Be2 {[%clk 0:00:14.1]} 30... Nxf3 {[%clk 0:00:29.4]} 31.
Bxf3 {[%clk 0:00:14.4]} 31... Nd3 {[%clk 0:00:29.5]} 32. Rf1 {[%clk 0:00:11.1]}
32... Nxc1 {[%clk 0:00:25.2]} 33. Rxc1 {[%clk 0:00:12]} 33... Rf8 {[%clk
0:00:23.9]} 0-1

[Event "Early-Titled-Tuesday-Blitz-September-12-2023"]
[Site "Chess.com"]
[Date "2023.09.12"]
[Round "10"]
[White "Dacean99"]
[Black "emeli_chess"]
[Result "1-0"]
[WhiteElo "2525"]
[BlackElo "2362"]
[TimeControl "180+1"]
[EndTime "9:55:36 PDT"]
[Termination "Dacean99 won by checkmate"]

1. d4 {[%clk 0:03:00.9]} 1... Nf6 {[%clk 0:02:59.5]} 2. Nf3 {[%clk 0:03:01.4]}
2... d5 {[%clk 0:02:59.3]} 3. c4 {[%clk 0:03:02.1]} 3... e6 {[%clk 0:02:59.3]}
4. Nc3 {[%clk 0:03:02.7]} 4... Bb4 {[%clk 0:02:59.2]} 5. Bg5 {[%clk 0:03:03.2]}
5... h6 {[%clk 0:02:59]} 6. Bh4 {[%clk 0:03:03.4]} 6... c5 {[%clk 0:02:56.1]} 7.
cxd5 {[%clk 0:03:02.4]} 7... exd5 {[%clk 0:02:55.4]} 8. e3 {[%clk 0:03:01.8]}
8... g5 {[%clk 0:02:52.2]} 9. Bg3 {[%clk 0:02:59.4]} 9... Ne4 {[%clk 0:02:52.5]}
10. Qc2 {[%clk 0:02:59.9]} 10... Qa5 {[%clk 0:02:51.3]} 11. Bd3 {[%clk
0:02:53.6]} 11... Bf5 {[%clk 0:02:48.3]} 12. O-O {[%clk 0:02:52.5]} 12... Bxc3
{[%clk 0:02:44.8]} 13. bxc3 {[%clk 0:02:51.9]} 13... c4 {[%clk 0:02:44.7]} 14.
Bxe4 {[%clk 0:02:51.2]} 14... Bxe4 {[%clk 0:02:44.9]} 15. Qb2 {[%clk 0:02:52.1]}
15... b5 {[%clk 0:02:24.8]} 16. Nd2 {[%clk 0:02:48.4]} 16... a6 {[%clk
0:02:08.3]} 17. f3 {[%clk 0:02:45.8]} 17... Bd3 {[%clk 0:02:06.9]} 18. Be5
{[%clk 0:02:40.7]} 18... Rg8 {[%clk 0:01:58.8]} 19. Rfe1 {[%clk 0:02:39.4]}
19... Nc6 {[%clk 0:01:57.7]} 20. e4 {[%clk 0:02:39.2]} 20... Nxe5 {[%clk
0:01:53.2]} 21. exd5 {[%clk 0:02:38]} 21... f6 {[%clk 0:01:41.8]} 22. dxe5
{[%clk 0:02:37.4]} 22... fxe5 {[%clk 0:01:42]} 23. Rxe5+ {[%clk 0:02:37.8]}
23... Kd7 {[%clk 0:01:40.7]} 24. Rae1 {[%clk 0:02:35.6]} 24... Rae8 {[%clk
0:01:40.9]} 25. Re6 {[%clk 0:02:33.8]} 25... Bf5 {[%clk 0:01:36.1]} 26. Rxe8
{[%clk 0:02:30.6]} 26... Rxe8 {[%clk 0:01:36]} 27. Rxe8 {[%clk 0:02:31.2]} 27...
Kxe8 {[%clk 0:01:36.4]} 28. Ne4 {[%clk 0:02:27.3]} 28... Bxe4 {[%clk 0:00:41.7]}
29. fxe4 {[%clk 0:02:28.2]} 29... Qa4 {[%clk 0:00:41]} 30. Kf2 {[%clk
0:02:26.2]} 30... Qd1 {[%clk 0:00:40.3]} 31. Qe2 {[%clk 0:02:24.4]} 31... Qc1
{[%clk 0:00:38.7]} 32. Qe3 {[%clk 0:02:01.6]} 32... Qc2+ {[%clk 0:00:33.4]} 33.
Kf3 {[%clk 0:01:59.6]} 33... Qxa2 {[%clk 0:00:31.3]} 34. Qb6 {[%clk 0:01:53.9]}
34... Qc2 {[%clk 0:00:30.7]} 35. Qe6+ {[%clk 0:01:53.4]} 35... Kd8 {[%clk
0:00:30.4]} 36. d6 {[%clk 0:01:48.2]} 36... Qxc3+ {[%clk 0:00:30.5]} 37. Kg4
{[%clk 0:01:48.2]} 37... Qg7 {[%clk 0:00:30.6]} 38. Qd5 {[%clk 0:01:41.1]} 38...
Qd7+ {[%clk 0:00:25.1]} 39. Kh5 {[%clk 0:01:39.4]} 39... c3 {[%clk 0:00:25.1]}
40. e5 {[%clk 0:01:18.9]} 40... c2 {[%clk 0:00:23.2]} 41. Qa8+ {[%clk
0:01:14.2]} 41... Qc8 {[%clk 0:00:22.6]} 42. Qa7 {[%clk 0:01:14.7]} 42... Qd7
{[%clk 0:00:20.5]} 43. Qb6+ {[%clk 0:01:10.4]} 43... Ke8 {[%clk 0:00:19.9]} 44.
Qc5 {[%clk 0:01:07.5]} 44... Qf7+ {[%clk 0:00:18.1]} 45. Kxh6 {[%clk 0:01:05.9]}
45... Qc4 {[%clk 0:00:18.2]} 46. d7+ {[%clk 0:00:53.9]} 46... Kxd7 {[%clk
0:00:17.5]} 47. Qd6+ {[%clk 0:00:54.1]} 47... Kc8 {[%clk 0:00:17.8]} 48. Qxa6+
{[%clk 0:00:50.3]} 48... Kc7 {[%clk 0:00:17.3]} 49. Qa7+ {[%clk 0:00:48.9]}
49... Kc6 {[%clk 0:00:17.3]} 50. Qa6+ {[%clk 0:00:48.9]} 50... Kc5 {[%clk
0:00:17.3]} 51. Qd6# {[%clk 0:00:48.7]} 1-0

[Event "Early-Titled-Tuesday-Blitz-September-12-2023"]
[Site "Chess.com"]
[Date "2023.09.12"]
[Round "10"]
[White "MatyChess1"]
[Black "FGHSMN"]
[Result "1-0"]
[WhiteElo "2710"]
[BlackElo "2876"]
[TimeControl "180+1"]
[EndTime "9:55:39 PDT"]
[Termination "MatyChess1 won by resignation"]

1. d4 {[%clk 0:03:00.9]} 1... Nf6 {[%clk 0:02:59.2]} 2. Bf4 {[%clk 0:03:01.4]}
2... e6 {[%clk 0:03:00.1]} 3. e3 {[%clk 0:03:01.7]} 3... b6 {[%clk 0:03:00.2]}
4. Qf3 {[%clk 0:03:02.2]} 4... Nc6 {[%clk 0:02:58.4]} 5. Nc3 {[%clk 0:03:01.9]}
5... Bb7 {[%clk 0:02:58]} 6. O-O-O {[%clk 0:03:01.6]} 6... Bb4 {[%clk
0:02:56.4]} 7. Nge2 {[%clk 0:02:59.5]} 7... O-O {[%clk 0:02:54.1]} 8. e4 {[%clk
0:02:50.4]} 8... Ne7 {[%clk 0:02:46.1]} 9. Bg5 {[%clk 0:02:29.9]} 9... Ng6
{[%clk 0:02:45.4]} 10. a3 {[%clk 0:02:25.2]} 10... Be7 {[%clk 0:02:44.3]} 11. h4
{[%clk 0:02:21.2]} 11... h6 {[%clk 0:02:41.9]} 12. Bxf6 {[%clk 0:01:56.2]} 12...
Bxf6 {[%clk 0:02:41.2]} 13. h5 {[%clk 0:01:52]} 13... Ne7 {[%clk 0:02:26.4]} 14.
Qg3 {[%clk 0:01:42.2]} 14... Nc6 {[%clk 0:02:26.7]} 15. f4 {[%clk 0:01:38.5]}
15... d6 {[%clk 0:02:20.2]} 16. e5 {[%clk 0:01:34.4]} 16... Be7 {[%clk
0:02:19.8]} 17. Qe3 {[%clk 0:01:14.5]} 17... dxe5 {[%clk 0:02:09.9]} 18. dxe5
{[%clk 0:01:12.4]} 18... Qe8 {[%clk 0:02:10.5]} 19. Ng3 {[%clk 0:01:09.7]} 19...
Bc5 {[%clk 0:02:09.3]} 20. Qf3 {[%clk 0:00:55.7]} 20... Rd8 {[%clk 0:02:05.7]}
21. Bd3 {[%clk 0:00:49.9]} 21... Na5 {[%clk 0:01:56.6]} 22. Be4 {[%clk 0:00:40]}
22... Bxe4 {[%clk 0:01:42.3]} 23. Ngxe4 {[%clk 0:00:40.9]} 23... Qe7 {[%clk
0:01:42.5]} 24. Ne2 {[%clk 0:00:25.4]} 24... Nc4 {[%clk 0:01:40.3]} 25. Kb1
{[%clk 0:00:24.3]} 25... Ne3 {[%clk 0:01:27.7]} 26. Rxd8 {[%clk 0:00:20.3]}
26... Rxd8 {[%clk 0:01:27.8]} 27. N2c3 {[%clk 0:00:20.8]} 27... Nf5 {[%clk
0:01:27.3]} 28. Rd1 {[%clk 0:00:20.5]} 28... Rxd1+ {[%clk 0:01:25.8]} 29. Qxd1
{[%clk 0:00:21.4]} 29... Be3 {[%clk 0:01:25.6]} 30. g4 {[%clk 0:00:18.3]} 30...
Nh4 {[%clk 0:01:20.5]} 31. Ne2 {[%clk 0:00:10.3]} 31... Qe8 {[%clk 0:01:12.2]}
32. Qd3 {[%clk 0:00:10.4]} 32... Ng2 {[%clk 0:01:09]} 33. g5 {[%clk 0:00:04]}
33... hxg5 {[%clk 0:01:01.2]} 34. fxg5 {[%clk 0:00:04.9]} 34... c5 {[%clk
0:00:56]} 35. h6 {[%clk 0:00:05.3]} 35... Qb8 {[%clk 0:00:48.4]} 36. hxg7 {[%clk
0:00:05.2]} 36... Qxe5 {[%clk 0:00:47.6]} 37. Nf6+ {[%clk 0:00:05.2]} 37... Kxg7
{[%clk 0:00:47.9]} 38. Qh7+ {[%clk 0:00:04.3]} 38... Kf8 {[%clk 0:00:47]} 39.
Qg8+ {[%clk 0:00:05.2]} 39... Ke7 {[%clk 0:00:47.7]} 40. Qe8+ {[%clk 0:00:05.9]}
40... Kd6 {[%clk 0:00:48.5]} 41. Qb8+ {[%clk 0:00:06.4]} 41... Kc6 {[%clk
0:00:47.3]} 42. Qxe5 {[%clk 0:00:07.1]} 42... Bd4 {[%clk 0:00:44.9]} 43. Nxd4+
{[%clk 0:00:06.7]} 43... cxd4 {[%clk 0:00:45.8]} 44. Qe4+ {[%clk 0:00:07.3]} 1-0

[Event "Early-Titled-Tuesday-Blitz-September-12-2023"]
[Site "Chess.com"]
[Date "2023.09.12"]
[Round "10"]
[White "crazy_m_attack"]
[Black "sergeikim"]
[Result "0-1"]
[WhiteElo "2409"]
[BlackElo "2578"]
[TimeControl "180+1"]
[EndTime "9:55:39 PDT"]
[Termination "sergeikim won by checkmate"]

1. e4 {[%clk 0:02:54.7]} 1... e5 {[%clk 0:02:59.4]} 2. Nf3 {[%clk 0:02:54.7]}
2... Nc6 {[%clk 0:02:59.4]} 3. Bb5 {[%clk 0:02:54.7]} 3... a6 {[%clk 0:02:59.5]}
4. Ba4 {[%clk 0:02:54.2]} 4... Nf6 {[%clk 0:02:59.7]} 5. O-O {[%clk 0:02:54.6]}
5... b5 {[%clk 0:02:59.8]} 6. Bb3 {[%clk 0:02:54.8]} 6... Bc5 {[%clk 0:02:59.9]}
7. c3 {[%clk 0:02:53.8]} 7... d6 {[%clk 0:03:00.1]} 8. d4 {[%clk 0:02:51.9]}
8... Bb6 {[%clk 0:03:00.4]} 9. h3 {[%clk 0:02:51.9]} 9... h6 {[%clk 0:02:59.9]}
10. Be3 {[%clk 0:02:50.4]} 10... O-O {[%clk 0:02:58]} 11. Nbd2 {[%clk
0:02:49.4]} 11... Re8 {[%clk 0:02:55.7]} 12. Re1 {[%clk 0:02:47.6]} 12... Bb7
{[%clk 0:02:49]} 13. d5 {[%clk 0:02:39.8]} 13... Ne7 {[%clk 0:02:45.8]} 14. Bxb6
{[%clk 0:02:36.7]} 14... cxb6 {[%clk 0:02:46.7]} 15. Nh4 {[%clk 0:02:34.1]}
15... Ng6 {[%clk 0:02:32.5]} 16. Nxg6 {[%clk 0:02:26.6]} 16... fxg6 {[%clk
0:02:32.7]} 17. Rf1 {[%clk 0:02:13]} 17... Nh5 {[%clk 0:02:29.5]} 18. Qg4 {[%clk
0:02:10.9]} 18... Kh7 {[%clk 0:02:26.9]} 19. g3 {[%clk 0:02:03.9]} 19... Bc8
{[%clk 0:02:26.3]} 20. Qe2 {[%clk 0:01:59]} 20... Bxh3 {[%clk 0:02:25.2]} 21.
Rfe1 {[%clk 0:01:58.8]} 21... Rf8 {[%clk 0:02:22.3]} 22. Kh2 {[%clk 0:01:53.5]}
22... Bc8 {[%clk 0:02:13]} 23. Rh1 {[%clk 0:01:46.8]} 23... Qg5 {[%clk
0:02:11.1]} 24. Bd1 {[%clk 0:01:22.9]} 24... Bg4 {[%clk 0:02:03.3]} 25. Qe1
{[%clk 0:00:58.3]} 25... Rf7 {[%clk 0:01:43]} 26. f3 {[%clk 0:00:46.3]} 26...
Bd7 {[%clk 0:01:40.5]} 27. Nf1 {[%clk 0:00:38]} 27... Raf8 {[%clk 0:01:19.6]}
28. Rg1 {[%clk 0:00:11.6]} 28... Nf6 {[%clk 0:01:12.8]} 29. Qe3 {[%clk 0:00:10]}
29... Qh5+ {[%clk 0:01:10]} 30. Kg2 {[%clk 0:00:09.5]} 30... Qh3+ {[%clk
0:01:08.7]} 31. Kf2 {[%clk 0:00:09]} 31... Ng4+ {[%clk 0:01:08.8]} 32. Ke2
{[%clk 0:00:09.5]} 32... Nxe3 {[%clk 0:01:08.3]} 33. Kxe3 {[%clk 0:00:09.4]}
33... Qh5 {[%clk 0:01:02.9]} 34. Be2 {[%clk 0:00:09.4]} 34... Qg5+ {[%clk
0:01:02.1]} 35. Kd3 {[%clk 0:00:05.1]} 35... Rxf3+ {[%clk 0:01:00.4]} 36. Bxf3
{[%clk 0:00:04.3]} 36... Rxf3+ {[%clk 0:01:00.1]} 37. Kc2 {[%clk 0:00:04.8]}
37... Rf2+ {[%clk 0:00:57.6]} 38. Kb3 {[%clk 0:00:05.2]} 38... Qg4 {[%clk
0:00:50]} 39. Rc1 {[%clk 0:00:02.7]} 39... Qe2 {[%clk 0:00:47.8]} 40. Rb1 {[%clk
0:00:02.2]} 40... Qc4+ {[%clk 0:00:45.5]} 41. Ka3 {[%clk 0:00:02.6]} 41... Qa4#
{[%clk 0:00:45.3]} 0-1

[Event "Early-Titled-Tuesday-Blitz-September-12-2023"]
[Site "Chess.com"]
[Date "2023.09.12"]
[Round "10"]
[White "Zhigalko_Sergei"]
[Black "DopplerCharlotteDeWitte"]
[Result "1-0"]
[WhiteElo "2888"]
[BlackElo "2695"]
[TimeControl "180+1"]
[EndTime "9:55:42 PDT"]
[Termination "Zhigalko_Sergei won on time"]

1. e4 {[%clk 0:03:00.9]} 1... c5 {[%clk 0:02:59.2]} 2. Nf3 {[%clk 0:03:01.2]}
2... e6 {[%clk 0:02:59.3]} 3. c3 {[%clk 0:03:01.5]} 3... d5 {[%clk 0:02:59.3]}
4. e5 {[%clk 0:03:02.1]} 4... d4 {[%clk 0:02:59.2]} 5. Bd3 {[%clk 0:03:01.4]}
5... Bd7 {[%clk 0:02:58.8]} 6. O-O {[%clk 0:03:00.6]} 6... Bc6 {[%clk
0:02:59.1]} 7. Qe2 {[%clk 0:02:59.1]} 7... Ne7 {[%clk 0:02:47.2]} 8. Be4 {[%clk
0:02:58.8]} 8... Ng6 {[%clk 0:02:42.1]} 9. d3 {[%clk 0:02:58.5]} 9... Be7 {[%clk
0:02:36.7]} 10. g3 {[%clk 0:02:56]} 10... O-O {[%clk 0:02:33.3]} 11. h4 {[%clk
0:02:55.6]} 11... Bxe4 {[%clk 0:02:11.8]} 12. Qxe4 {[%clk 0:02:55.8]} 12... Qd5
{[%clk 0:02:12]} 13. Qxd5 {[%clk 0:02:52.8]} 13... exd5 {[%clk 0:02:12.4]} 14.
h5 {[%clk 0:02:53.5]} 14... Nh8 {[%clk 0:02:11.8]} 15. cxd4 {[%clk 0:02:53.7]}
15... Nc6 {[%clk 0:02:09.2]} 16. Nc3 {[%clk 0:02:48.9]} 16... Rad8 {[%clk
0:02:07.7]} 17. Be3 {[%clk 0:02:22]} 17... f6 {[%clk 0:01:58.4]} 18. e6 {[%clk
0:02:08.3]} 18... Rfe8 {[%clk 0:01:47.6]} 19. Nb5 {[%clk 0:01:40.3]} 19... cxd4
{[%clk 0:01:28.3]} 20. Nfxd4 {[%clk 0:01:18]} 20... Nxd4 {[%clk 0:00:40.2]} 21.
Bxd4 {[%clk 0:01:08.2]} 21... Bd6 {[%clk 0:00:34.9]} 22. Rfe1 {[%clk 0:00:57.8]}
22... a6 {[%clk 0:00:35]} 23. Nc3 {[%clk 0:00:53]} 23... Bb8 {[%clk 0:00:21.5]}
24. Re2 {[%clk 0:00:49.4]} 24... Rd6 {[%clk 0:00:12.8]} 25. Rae1 {[%clk
0:00:48.4]} 25... Rc8 {[%clk 0:00:07.1]} 26. Kg2 {[%clk 0:00:44.4]} 26... Kf8
{[%clk 0:00:05.7]} 27. Na4 {[%clk 0:00:28.3]} 27... Ke8 {[%clk 0:00:04.3]} 28.
Nc5 {[%clk 0:00:22.2]} 28... Rdc6 {[%clk 0:00:02.1]} 29. Nxb7 {[%clk 0:00:19.9]}
29... R8c7 {[%clk 0:00:01.7]} 30. Na5 {[%clk 0:00:17.6]} 30... Rc2 {[%clk
0:00:02.1]} 31. Nb3 {[%clk 0:00:13.1]} 1-0

[Event "Early-Titled-Tuesday-Blitz-September-12-2023"]
[Site "Chess.com"]
[Date "2023.09.12"]
[Round "10"]
[White "Firouzja2003"]
[Black "wonderfultime"]
[Result "1-0"]
[WhiteElo "3078"]
[BlackElo "3003"]
[TimeControl "180+1"]
[EndTime "9:55:47 PDT"]
[Termination "Firouzja2003 won by resignation"]

1. e4 {[%clk 0:03:00.9]} 1... c5 {[%clk 0:02:56.7]} 2. Nf3 {[%clk 0:03:01]} 2...
Nf6 {[%clk 0:02:57.4]} 3. e5 {[%clk 0:03:01]} 3... Nd5 {[%clk 0:02:57.3]} 4. Nc3
{[%clk 0:03:01.7]} 4... Nxc3 {[%clk 0:02:57.9]} 5. dxc3 {[%clk 0:03:02]} 5...
Nc6 {[%clk 0:02:58.5]} 6. Bf4 {[%clk 0:03:00.6]} 6... h6 {[%clk 0:02:55.5]} 7.
Qe2 {[%clk 0:02:58.1]} 7... e6 {[%clk 0:02:51.7]} 8. O-O-O {[%clk 0:02:57.5]}
8... Qc7 {[%clk 0:02:43.8]} 9. Nd2 {[%clk 0:02:49.8]} 9... d5 {[%clk 0:02:36]}
10. exd6 {[%clk 0:02:42.7]} 10... Bxd6 {[%clk 0:02:36.4]} 11. Bxd6 {[%clk
0:02:43.4]} 11... Qxd6 {[%clk 0:02:37.3]} 12. Ne4 {[%clk 0:02:44]} 12... Qe5
{[%clk 0:02:32]} 13. Qe3 {[%clk 0:02:30.1]} 13... O-O {[%clk 0:02:14.4]} 14. f4
{[%clk 0:02:27.4]} 14... Qc7 {[%clk 0:02:14.5]} 15. Nxc5 {[%clk 0:02:25.7]}
15... Ne7 {[%clk 0:02:07.9]} 16. g3 {[%clk 0:01:50.9]} 16... Nd5 {[%clk
0:01:59.4]} 17. Qf2 {[%clk 0:01:42]} 17... b6 {[%clk 0:01:59.7]} 18. Nd3 {[%clk
0:01:36]} 18... Bb7 {[%clk 0:01:56.1]} 19. Bg2 {[%clk 0:01:36]} 19... Rac8
{[%clk 0:01:55]} 20. Rhe1 {[%clk 0:01:29.5]} 20... Rfd8 {[%clk 0:01:38.1]} 21.
Kb1 {[%clk 0:01:23.1]} 21... b5 {[%clk 0:01:35.9]} 22. f5 {[%clk 0:00:42.1]}
22... exf5 {[%clk 0:01:33.2]} 23. Bxd5 {[%clk 0:00:32.9]} 23... Bxd5 {[%clk
0:01:27]} 24. Qxf5 {[%clk 0:00:30.5]} 24... Qc4 {[%clk 0:01:16.1]} 25. Nc1
{[%clk 0:00:24.4]} 25... Be6 {[%clk 0:01:06.6]} 26. Qf1 {[%clk 0:00:22.2]} 26...
Qc5 {[%clk 0:00:57.1]} 27. Nb3 {[%clk 0:00:22.3]} 27... Qh5 {[%clk 0:00:57.6]}
28. Nd4 {[%clk 0:00:20.4]} 28... Bc4 {[%clk 0:00:51.5]} 29. Qf2 {[%clk
0:00:19.5]} 29... Bd5 {[%clk 0:00:40]} 30. Rd3 {[%clk 0:00:18.8]} 30... a5
{[%clk 0:00:34.7]} 31. Rde3 {[%clk 0:00:18.8]} 31... b4 {[%clk 0:00:26.7]} 32.
Re5 {[%clk 0:00:19]} 32... Qg4 {[%clk 0:00:26.2]} 33. Qf5 {[%clk 0:00:12.2]}
33... Qg6 {[%clk 0:00:18.5]} 34. Rxd5 {[%clk 0:00:11.4]} 34... Qxf5 {[%clk
0:00:13.9]} 35. Rxd8+ {[%clk 0:00:09.6]} 1-0

[Event "Early-Titled-Tuesday-Blitz-September-12-2023"]
[Site "Chess.com"]
[Date "2023.09.12"]
[Round "10"]
[White "TERMINATOR_PC"]
[Black "Evgeny81"]
[Result "0-1"]
[WhiteElo "2558"]
[BlackElo "2748"]
[TimeControl "180+1"]
[EndTime "9:55:47 PDT"]
[Termination "Evgeny81 won on time"]

1. e4 {[%clk 0:03:00.9]} 1... c5 {[%clk 0:02:52.6]} 2. Nf3 {[%clk 0:03:00.9]}
2... Nc6 {[%clk 0:02:50.4]} 3. d4 {[%clk 0:03:01.5]} 3... cxd4 {[%clk
0:02:51.1]} 4. Nxd4 {[%clk 0:03:02.3]} 4... Nf6 {[%clk 0:02:51.7]} 5. Nc3 {[%clk
0:03:01.7]} 5... Rb8 {[%clk 0:02:51.9]} 6. Bg5 {[%clk 0:02:53.3]} 6... Qa5
{[%clk 0:02:47.4]} 7. Bxf6 {[%clk 0:02:49.3]} 7... gxf6 {[%clk 0:02:48.3]} 8.
Nb3 {[%clk 0:02:48.6]} 8... Qe5 {[%clk 0:02:43.4]} 9. Qd2 {[%clk 0:02:45.1]}
9... h5 {[%clk 0:02:42.9]} 10. f4 {[%clk 0:02:38.3]} 10... Qc7 {[%clk 0:02:43]}
11. O-O-O {[%clk 0:02:34.2]} 11... d6 {[%clk 0:02:34.3]} 12. Kb1 {[%clk
0:02:29.3]} 12... a6 {[%clk 0:02:32.8]} 13. Be2 {[%clk 0:02:20]} 13... b5 {[%clk
0:02:30.9]} 14. Bf3 {[%clk 0:02:16.4]} 14... e6 {[%clk 0:02:26.6]} 15. Rhe1
{[%clk 0:02:05.1]} 15... Bb7 {[%clk 0:02:17.5]} 16. f5 {[%clk 0:02:01.2]} 16...
Ne5 {[%clk 0:02:15.8]} 17. Nd4 {[%clk 0:01:58.3]} 17... Bc8 {[%clk 0:02:14]} 18.
g3 {[%clk 0:01:51.6]} 18... h4 {[%clk 0:02:09.3]} 19. Nce2 {[%clk 0:01:42.6]}
19... Bh6 {[%clk 0:02:03.5]} 20. Nf4 {[%clk 0:01:40.8]} 20... Ke7 {[%clk
0:01:45.2]} 21. fxe6 {[%clk 0:01:29.3]} 21... fxe6 {[%clk 0:01:46.1]} 22. Qb4
{[%clk 0:01:16.6]} 22... Qc5 {[%clk 0:01:39.2]} 23. Qb3 {[%clk 0:00:59.4]} 23...
Qc4 {[%clk 0:01:36.6]} 24. Qe3 {[%clk 0:00:39.2]} 24... Bg5 {[%clk 0:01:23]} 25.
Qf2 {[%clk 0:00:24.5]} 25... Bd7 {[%clk 0:01:14.3]} 26. Be2 {[%clk 0:00:19.9]}
26... Qc5 {[%clk 0:01:11]} 27. Rg1 {[%clk 0:00:11.8]} 27... hxg3 {[%clk
0:01:04.7]} 28. Rxg3 {[%clk 0:00:11.4]} 28... Rbe8 {[%clk 0:00:54.4]} 29. Rf1
{[%clk 0:00:04.6]} 29... Kd8 {[%clk 0:00:49.1]} 30. Rc3 {[%clk 0:00:04.2]} 30...
Nc4 {[%clk 0:00:35.7]} 31. Bxc4 {[%clk 0:00:03.1]} 31... bxc4 {[%clk 0:00:35.1]}
32. Qd2 {[%clk 0:00:01]} 32... e5 {[%clk 0:00:31.3]} 33. Nb3 {[%clk 0:00:01.2]}
33... Bxf4 {[%clk 0:00:22.1]} 0-1

[Event "Early-Titled-Tuesday-Blitz-September-12-2023"]
[Site "Chess.com"]
[Date "2023.09.12"]
[Round "10"]
[White "attack2mateU"]
[Black "ErikRonka"]
[Result "1-0"]
[WhiteElo "2725"]
[BlackElo "2530"]
[TimeControl "180+1"]
[EndTime "9:55:47 PDT"]
[Termination "attack2mateU won by checkmate"]

1. e4 {[%clk 0:02:52.7]} 1... c5 {[%clk 0:03:00]} 2. Nf3 {[%clk 0:02:52.5]} 2...
e6 {[%clk 0:03:00.2]} 3. c3 {[%clk 0:02:53.2]} 3... Nf6 {[%clk 0:02:59.9]} 4. e5
{[%clk 0:02:53.1]} 4... Nd5 {[%clk 0:03:00.5]} 5. d4 {[%clk 0:02:53.5]} 5...
cxd4 {[%clk 0:03:01.4]} 6. cxd4 {[%clk 0:02:54.1]} 6... d6 {[%clk 0:03:02]} 7.
Bc4 {[%clk 0:02:53.8]} 7... Be7 {[%clk 0:03:02.5]} 8. O-O {[%clk 0:02:53.8]}
8... O-O {[%clk 0:03:02.9]} 9. Qe2 {[%clk 0:02:54.5]} 9... Nc6 {[%clk
0:03:03.1]} 10. Nc3 {[%clk 0:02:54.5]} 10... Nxc3 {[%clk 0:03:01.8]} 11. bxc3
{[%clk 0:02:55.4]} 11... dxe5 {[%clk 0:03:02.4]} 12. dxe5 {[%clk 0:02:56.3]}
12... Qc7 {[%clk 0:03:02.6]} 13. Re1 {[%clk 0:02:52.2]} 13... b6 {[%clk
0:02:59.7]} 14. Bd3 {[%clk 0:02:51.9]} 14... Bb7 {[%clk 0:02:53.4]} 15. Ng5
{[%clk 0:02:51.3]} 15... Bxg5 {[%clk 0:02:48.7]} 16. Bxg5 {[%clk 0:02:52.2]}
16... Ne7 {[%clk 0:02:41]} 17. Qh5 {[%clk 0:02:47.6]} 17... Ng6 {[%clk
0:02:38.4]} 18. Re3 {[%clk 0:02:47.1]} 18... Qc6 {[%clk 0:01:09.6]} 19. Be4
{[%clk 0:02:45.2]} 19... Qxe4 {[%clk 0:01:09.3]} 20. Rxe4 {[%clk 0:02:45.3]}
20... Bxe4 {[%clk 0:01:10.2]} 21. Re1 {[%clk 0:02:21.1]} 21... Bd5 {[%clk
0:01:04.4]} 22. h4 {[%clk 0:02:20.5]} 22... Rac8 {[%clk 0:00:47.2]} 23. Qd1
{[%clk 0:02:01.5]} 23... h6 {[%clk 0:00:42.6]} 24. Bf6 {[%clk 0:00:51.9]} 24...
Rc4 {[%clk 0:00:24]} 25. h5 {[%clk 0:00:42.8]} 25... Nf4 {[%clk 0:00:22.6]} 26.
Qg4 {[%clk 0:00:38.7]} 26... g6 {[%clk 0:00:02.9]} 27. hxg6 {[%clk 0:00:38.6]}
27... fxg6 {[%clk 0:00:03.4]} 28. g3 {[%clk 0:00:11.3]} 28... h5 {[%clk
0:00:03.6]} 29. Qd1 {[%clk 0:00:12]} 29... Nh3+ {[%clk 0:00:03]} 30. Kf1 {[%clk
0:00:09.5]} 30... Re4 {[%clk 0:00:01.7]} 31. Qc2 {[%clk 0:00:06.4]} 31... Rxe1+
{[%clk 0:00:01.2]} 32. Kxe1 {[%clk 0:00:07.3]} 32... g5 {[%clk 0:00:01.1]} 33.
Qg6# {[%clk 0:00:07.4]} 1-0